Cogmind - Beta 16 @@@ ROGUE MODE // 2025.12.25 @ 01:27:57 Player: MrProgressor Result: Self-destructed Performance ------------- Evolutions (4) 2000 Regions Visited (9) 1800 Robots Destroyed (22) 110 Value Destroyed (614) 614 Prototype IDs (26) 520 Alien Tech Used (0) 0 Bonus (300) 300 TOTAL SCORE: 5344 Bonus ------- Aligned with FarCom 300 Cogmind --------- Core Integrity 796/850 Matter 292/300 Energy 179/240 System Corruption 0% Temperature Cool (48) Movement Hovering (115) Ox1 Location -6/Factory Parts ------- > --- POWER (1) -------- Nuclear Core > --- PROPULSION (5) --- Cooled Airjet Cooled Airjet Combat Airjet > --- UTILITY (7) ------ Lightpack 2.0 Improved Signal Interpreter Improved Terrain Scanner Reflective Plating Reflective Plating > --- WEAPON (2) ------- Heavy Ion Cannon Makeshift Hammer > --- INVENTORY (40) --- Wheel Armored Wheel Armored Wheel Armored Wheel Armored Wheel VTOL Module Improved VTOL Module Xenon Bombardment Thruster Xenon Bombardment Thruster Thermal Generator Improved Heat Sink Cooling System High-capacity Battery (250) High-capacity Matter Pod (200) High-capacity Matter Pod (0) Advanced Weight Redist. System Trap Scanner Advanced Signal Interpreter Advanced Targeting Computer Core Analyzer Recoil Stabilizer Weapon Cycler Transmission Jammer Advanced ECM Suite Improved Light Armor Plating EM Disruption Field Improved Shield Generator Recalibrator Improved Field Recycling Unit (0) Particle Gun Particle Gun Improved Assault Rifle Flak Gun Heavy Battle Rifle Heavy Battle Rifle Datajack Power Maul Peak State ------------ > --- POWER ------------ Nuclear Core > --- PROPULSION ------- Improved Hover Unit Improved Hover Unit Cooled Airjet Cooled Airjet Combat Airjet > --- UTILITY ---------- Lightpack 2.0 Trap Scanner Improved Signal Interpreter Improved Terrain Scanner Transmission Jammer > --- WEAPON ----------- Plasma Cannon Heavy Ion Cannon > --- INVENTORY -------- Wheel Armored Wheel Armored Wheel Armored Wheel Armored Wheel VTOL Module Improved VTOL Module Xenon Bombardment Thruster Xenon Bombardment Thruster Thermal Generator Improved Heat Sink Cooling System High-capacity Battery High-capacity Matter Pod Advanced Weight Redist. System Advanced Signal Interpreter Advanced Targeting Computer Core Analyzer Recoil Stabilizer Weapon Cycler Advanced ECM Suite Improved Light Armor Plating Reflective Plating Reflective Plating EM Disruption Field Improved Shield Generator Recalibrator Improved Field Recycling Unit Particle Gun Particle Gun Improved Assault Rifle Flak Gun Heavy Battle Rifle Heavy Battle Rifle Datajack Makeshift Hammer Power Maul [Rating: 84] Favorites ----------- Power Ion Engine Engine Ion Engine Power Core Nuclear Core Propulsion Improved Hover Unit Treads Light Treads Wheel Compact Wheel Hover Unit Improved Hover Unit Utility Improved Terrain Scanner Device Improved Terrain Scanner Storage Lightpack 2.0 Processor Improved Signal Interpreter Protection Improved Light Armor Plating Weapon Makeshift Hammer Energy Gun Medium Laser Energy Cannon Plasma Cannon Ballistic Gun Assault Rifle Ballistic Cannon Flak Cannon Launcher Rocket Launcher Impact Weapon Makeshift Hammer Build | -11 -10 -10 -10 -9 -8 -7 -7 -7 -6 ------- Run | Yrd Mat Min Exi Min Mat Fac Low Low Fac Slots Evolved 8 | . . . . . 4 2 . . 2 Power . | . . . . . . . . . . Propulsion 3 | . . . . . 1 1 . . 1 Utility 5 | . . . . . 3 1 . . 1 Weapon . | . . . . . . . . . . Parts Attached 49 | 7 1 2 1 1 12 15 6 . 4 Power 4 | 1 . . . 1 1 1 . . . Engine 3 | 1 . . . 1 1 . . . . Core 1 | . . . . . . 1 . . . Reactor . | . . . . . . . . . . Propulsion 15 | 2 . 1 . . 5 6 . . 1 Treads 3 | . . 1 . . 1 1 . . . Leg . | . . . . . . . . . . Wheel 3 | 2 . . . . . 1 . . . Hover 9 | . . . . . 4 4 . . 1 Flight . | . . . . . . . . . . Utility 16 | 2 1 . 1 . 3 5 2 . 2 Device 7 | 1 . . . . 1 4 . . 1 Storage 4 | 1 1 . 1 . 1 . . . . Processor 1 | . . . . . . 1 . . . Hackware . | . . . . . . . . . . Protection 4 | . . . . . 1 . 2 . 1 Artifact . | . . . . . . . . . . Weapon 14 | 2 . 1 . . 3 3 4 . 1 Energy Gun 2 | 1 . . . . 1 . . . . Energy Cannon 2 | . . . . . . . 1 . 1 Ballistic Gun 5 | 1 . . . . 1 2 1 . . Ballistic Cannon 3 | . . . . . 1 1 1 . . Launcher 1 | . . . . . . . 1 . . Special Weapon . | . . . . . . . . . . Impact Weapon 1 | . . 1 . . . . . . . Slashing Weapon . | . . . . . . . . . . Piercing Weapon . | . . . . . . . . . . Special Melee Weapon . | . . . . . . . . . . Unidentified Prototypes 3 | . . . . . 2 1 . . . Parts Lost 9 | . . 1 . . 3 1 1 . 3 Power 1 | . . . . . 1 . . . . Propulsion 6 | . . 1 . . 2 1 . . 2 Utility . | . . . . . . . . . . Weapon 2 | . . . . . . . 1 . 1 Highest Loss Streak 2 | . . 1 . . 1 1 1 . 2 To Critical Strikes . | . . . . . . . . . . Average Backups 26 | 2 8 14 16 15 16 36 38 37 36 Power 2 | . 3 4 3 2 1 2 . . . Propulsion 5 | 1 2 1 1 1 3 9 9 9 8 Utility 9 | . 1 4 6 7 3 12 17 18 18 Weapon 8 | . 1 5 6 5 7 11 10 9 8 Tool/Special . | . . . . . . . . . . Unused Backups 59 | . . 3 3 4 7 14 2 . 26 Power 6 | . . 2 1 . 1 2 . . . Propulsion 13 | . . . . . 1 4 . . 8 Utility 22 | . . 1 1 2 2 4 . . 12 Weapon 17 | . . . 1 2 3 4 2 . 5 Tool/Special 1 | . . . . . . . . . 1 Average Slot Usage (%) 87 | . 100 98 100 100 80 80 84 84 83 Engine 7 | . 14 14 14 14 9 6 . . . Core 1 | . . . . . . . 7 7 6 Treads 4 | . . 5 14 14 5 . . . . Wheel 6 | . 28 21 14 14 3 1 . . 3 Hover 17 | . . . . . 17 25 30 30 27 Device 15 | . 14 14 14 14 14 20 12 . 17 Storage 9 | . 14 14 14 14 9 7 7 7 6 Processor 1 | . . . . . . . 7 7 6 Protection 1 | . . . . . 3 2 2 15 2 Energy Gun 5 | . 14 14 14 14 6 . . . . Ballistic Gun 6 | . 14 12 14 14 1 6 . . . Ballistic Cannon 2 | . . . . . 5 2 . 7 3 Impact Weapon 3 | . . 1 . . 3 4 6 . 1 Peak Build Rating 84 | 9 10 13 14 14 56 75 75 75 84 Average Rating 49 | 5 9 10 11 14 50 70 73 75 79 On Entrance 33 | . 9 10 11 14 14 56 74 75 75 Avg Prop Armor Cover (%) 9 | . . 13 13 13 5 5 . . 6 Naked Turns . | . . . . . . . . . . Heaviest Build 50 | 15 30 31 50 50 23 32 32 32 32 Greatest Support 45 | 32 32 32 16 16 40 32 32 32 45 Greatest Overweight (x) 3 | . . 1 3 3 1 2 . . 2 Average Overweight (x) . | . . . 2 3 . . . . . Largest Inventory Capacity 40 | 8 15 15 20 20 40 40 40 40 40 Average Capacity 32 | 7 14 15 19 20 40 40 40 40 40 Most Carried 40 | 5 15 15 20 20 30 40 40 38 37 Average Carried 27 | 2 8 14 17 19 19 38 39 38 36 Final Capacity 40 | 8 15 15 20 20 40 40 40 40 40 Final Carried 38 | 5 15 15 20 20 29 38 38 38 37 Class Distribution -------------------- 30% | Hauler-Mutant 26% | Mutant 24% | Hauler-Scout 7% | Hauler-Ninja 4% | Skirmisher 4% | Hauler-Skirmisher Dominant Class ---------------- Mutant | -10/Materials Mutant | -10/Mines Mutant | -10/Exiles Skirmisher | -9/Mines Hauler-Scout | -8/Materials Hauler-Mutant | -7/Factory Hauler-Mutant | -7/Lower Caves Hauler-Mutant | -7/Lower Caves Hauler-Scout | -6/Factory Resources | -11 -10 -10 -10 -9 -8 -7 -7 -7 -6 ----------- Run | Yrd Mat Min Exi Min Mat Fac Low Low Fac Matter Collected 1576 | 285 31 43 30 . 154 401 414 . 218 Remotely . | . . . . . . . . . . Salvage Created 590 | 69 51 28 . . 168 86 111 . 77 Parts 24 | 2 3 . . . 1 6 10 . 2 Haulers Intercepted 3 | . . . . . 2 . . . 1 Recyclers Shooed . | . . . . . . . . . . Parts Field Recycled 8 | . . . . . . 8 . . . Retrieved Matter 59 | . . . . . . 59 . . . Parts Self-Destructed 7 | . . . . . . . 7 . . Prevented . | . . . . . . . . . . Parts Restored . | . . . . . . . . . . Kills | -11 -10 -10 -10 -9 -8 -7 -7 -7 -6 ------- Run | Yrd Mat Min Exi Min Mat Fac Low Low Fac Combat Hostiles Destroyed 13 | . . . . . 2 4 7 . . Melee 2 | . . . . . . 1 1 . . Guns 5 | . . . . . 2 3 . . . AOE 5 | . . . . . . . 5 . . Classes Destroyed 9 | 2 1 . . . 3 2 1 . . Tunneler 1 | 1 . . . . . . . . . Hauler 3 | . . . . . 2 . . . 1 Recycler 1 | 1 . . . . . . . . . Watcher 4 | . 2 . . . 1 . . . 1 Swarmer 9 | . . . . . . 3 6 . . Grunt 1 | . . . . . . . 1 . . Sentry 1 | . . . . . 1 . . . . Hunter 1 | . . . . . 1 . . . . Programmer 1 | . . . . . . 1 . . . Best Kill Streak 3 | 2 2 . . . 1 3 3 . 2 Combat Bots Only 3 | . . . . . 1 3 3 . . Max Kills in Single Turn 2 | 1 1 . . . 1 1 2 . 1 Gunslinging . | . . . . . . . . . . Exploded 2 | . . . . . . . 2 . . Melee 1 | . . . . . . 1 1 . . Uniques/NPCs Destroyed . | . . . . . . . . . . Combat | -11 -10 -10 -10 -9 -8 -7 -7 -7 -6 -------- Run | Yrd Mat Min Exi Min Mat Fac Low Low Fac Hostile Shots Fired 157 | . . 1 . . 37 37 49 . 33 Missed 56 | . . . . . 10 12 22 . 12 Hits 101 | . . 1 . . 27 25 27 . 21 Projectile 101 | . . 1 . . 27 25 27 . 21 AOE 8 | . . 8 . . . . . . . Critical Strikes 8 | . . 1 . . 3 2 . . 2 Damage Taken 2152 | . . 261 . . 655 463 401 . 372 Core 479 | . . 117 . . 136 128 44 . 54 Absorbed by Shields . | . . . . . . . . . . Ignored by Resistances 50 | . . . . . . . 22 . 28 Regen/Repaired (Parts) 78 | . . . . . 21 . . . 57 Core Remaining (%) 75 | 100 . . . 53 75 . . 75 . Volleys Fired 84 | 5 7 6 . . 19 17 13 . 17 Largest 2 | 2 2 2 . . 2 2 2 . 2 Hottest 120 | 70 70 70 . . 115 51 120 . 120 Shots Fired 139 | 10 14 12 . . 37 25 14 . 27 Gun 82 | 10 14 12 . . 23 23 . . . Cannon 45 | . . . . . 14 2 2 . 27 Launcher 12 | . . . . . . . 12 . . Special . | . . . . . . . . . . Kinetic 75 | 5 7 6 . . 15 25 1 . 16 Thermal 52 | 5 7 6 . . 22 . 1 . 11 Explosive 12 | . . . . . . . 12 . . Electromagnetic . | . . . . . . . . . . Robot Hit Streak 10 | 5 3 3 . . 10 9 4 . 7 Robot Miss Streak 8 | 3 3 2 . . 8 7 3 . 2 Penetration Max . | . . . . . . . . . . Secondary Targets . | . . . . . . . . . . Shots Hit Robots 109 | 7 7 9 . . 31 29 11 . 15 Core Hits 60 | 3 3 5 . . 13 16 16 . 4 Critical Kills 1 | . . 1 . . . . . . . Critical Parts Destroyed 1 | . . . . . . 1 . . . Critical Strikes 4 | . . 2 . . 1 1 . . . Burn 2 | . . 1 . . 1 . . . . Smash 2 | . . 1 . . . 1 . . . Melee Attacks 42 | . . 4 . . 13 12 7 . 6 Impact 42 | . . 4 . . 13 12 7 . 6 Slashing . | . . . . . . . . . . Piercing . | . . . . . . . . . . Sneak Attacks 1 | . . . . . 1 . . . . Combat Hostiles . | . . . . . . . . . . Follow-up Attacks . | . . . . . . . . . . Damage Inflicted 3025 | 86 115 288 . . 662 698 763 . 413 Guns 889 | 86 115 90 . . 238 360 . . . Cannons 691 | . . . . . 196 31 51 . 413 Explosions 568 | . . . . . . . 568 . . Melee 877 | . . 198 . . 228 307 144 . . Ramming . | . . . . . . . . . . Kinetic 996 | 49 66 41 . . 213 391 25 . 211 Thermal 584 | 37 49 49 . . 221 . 26 . 202 Explosive 568 | . . . . . . . 568 . . Electromagnetic . | . . . . . . . . . . Impact 877 | . . 198 . . 228 307 144 . . Slashing . | . . . . . . . . . . Piercing . | . . . . . . . . . . Highest Corruption 4 | . . . . . 4 2 2 2 . Average Corruption 2 | . . . . . 4 1 2 2 . Corruption Purged . | . . . . . . . . . . Corruption Blocked . | . . . . . . . . . . Effects 27 | . . . . . 12 6 9 . . Message Errors 7 | . . . . . 3 2 2 . . Matter Fused 6 | . . . . . 1 1 4 . . Heat Flow Errors 2 | . . . . . 1 . 1 . . Energy Discharges 5 | . . . . . 1 2 2 . . Parts Rejected 2 | . . . . . 1 1 . . . Data Loss (minor) 2 | . . . . . 2 . . . . Data Loss (major) 1 | . . . . . 1 . . . . Alerts 1 | . . . . . 1 . . . . Weapon Failures 1 | . . . . . 1 . . . . Overload Shots . | . . . . . . . . . . Overflow Damage 320 | . . 65 . . 96 85 74 . . Projectiles . | . . . . . . . . . . Explosions 36 | . . . . . . . 36 . . Melee 284 | . . 65 . . 96 85 38 . . Knockbacks 12 | . . . . . 4 6 1 . 1 Impact 4 | . . . . . . 3 1 . . Kinetic 8 | . . . . . 4 3 . . 1 Secondary . | . . . . . . . . . . Self-Inflicted Damage 99 | . . . . . . 99 . . . Shots 2 | . . . . . . 2 . . . Rammed . | . . . . . . . . . . Targets Rammed . | . . . . . . . . . . Kicked . | . . . . . . . . . . Crushed . | . . . . . . . . . . Highest Temperature 225 | 27 45 36 . . 225 . 187 . 138 Average Temperature 40 | 12 18 16 . . 59 . 55 . 52 Received Heat Transfer 469 | . . . . . 144 . 99 . 226 Siege Activations . | . . . . . . . . . . Martial Activations . | . . . . . . . . . . Shielding Activations . | . . . . . . . . . . Robots Disrupted . | . . . . . . . . . . Combat Hostiles . | . . . . . . . . . . Robots Corrupted 2 | . . . . . 1 . 1 . . Combat Hostiles 1 | . . . . . . . 1 . . Parts Fried 1 | . . . . . 1 . . . . Impact Corruptions 10 | . . 2 . . 2 4 2 . . Robots Melted . | . . . . . . . . . . Combat Hostiles . | . . . . . . . . . . Parts Melted . | . . . . . . . . . . Heat Transferred 1560 | 111 148 222 . . 629 . 50 . 400 Parts Sabotaged . | . . . . . . . . . . Parts Stolen . | . . . . . . . . . . Parts Stripped . | . . . . . . . . . . Power Chain Reactions 1 | . . . . . . 1 . . . Alert | -11 -10 -10 -10 -9 -8 -7 -7 -7 -6 ------- Run | Yrd Mat Min Exi Min Mat Fac Low Low Fac Maximum Alert Level . | . . . . . . . . . . Low Security (%) 100 | 100 100 100 . 100 100 100 . . 100 Level 1 . | . . . . . . . . . . Level 2 . | . . . . . . . . . . Level 3 . | . . . . . . . . . . Level 4 . | . . . . . . . . . . Level 5 . | . . . . . . . . . . High Security . | . . . . . . . . . . Max Security . | . . . . . . . . . . Peak Influence 109 | 5 7 15 . . 30 109 . . 107 Initial 43 | . 3 . . . . 2 . . 43 Average 15 | . 1 1 . . 5 17 . . 69 Influence Increases 768 | 10 14 17 . . 152 183 225 . 167 Destroy 0b10 Robot/C 260 | . . . . . 40 80 140 . . Destroy 0b10 Robot/NC 45 | 10 10 . . . 15 . . . 10 Destroy Leader 64 | . 4 . . . 26 20 10 . 4 Trap Triggered on 0b10 30 | . . . . . 20 . . . 10 Successful Hack 59 | . . . . . 12 17 . . 30 Disable Machine 75 | . . . . . 15 45 . . 15 Destroy Structure 40 | . . 2 . . 9 21 . . 8 Lose Combat Pursuer 195 | . . 15 . . 15 . 75 . 90 Influence Decreases 698 | 5 19 17 . . 145 190 139 17 166 Entered New Map 50 | . 2 . . . . 5 . 17 26 Time Decay 595 | 5 17 16 . . 133 185 129 . 110 Lost Part 53 | . . 1 . . 12 . 10 . 30 Squads Dispatched 10 | . . . . . 2 5 . . 3 Investigation 3 | . . . . . . 2 . . 1 Extermination 3 | . . . . . . 3 . . . Reinforcement 4 | . . . . . 2 . . . 2 Assault . | . . . . . . . . . . Garrison . | . . . . . . . . . . Intercept . | . . . . . . . . . . Searches Triggered . | . . . . . . . . . . Construction Impeded . | . . . . . . . . . . Haulers Reinforced . | . . . . . . . . . . Active Scanning Responses . | . . . . . . . . . . Cargo Convoy Interrupts . | . . . . . . . . . . Stealth | -11 -10 -10 -10 -9 -8 -7 -7 -7 -6 --------- Run | Yrd Mat Min Exi Min Mat Fac Low Low Fac Distress Signals 2 | . . . . . 1 . . . 1 Communications Jammed 5 | . . . . . . . . . 5 Distress Signals 5 | . . . . . . . . . 5 Times Spotted 50 | . 3 4 . . 11 7 12 . 13 Peak Tracking Total 9 | . 3 3 . . 5 4 9 . 4 Tactical Retreats 7 | . . 1 . . 1 . 3 . 2 Traps | -11 -10 -10 -10 -9 -8 -7 -7 -7 -6 ------- Run | Yrd Mat Min Exi Min Mat Fac Low Low Fac Traps Triggered 2 | . . . . . . 2 . . . Indirectly . | . . . . . . . . . . Trap Hack Attempts . | . . . . . . . . . . Triggered . | . . . . . . . . . . Disarmed . | . . . . . . . . . . Reprogrammed . | . . . . . . . . . . Reused 3 | . . . . . 2 . . . 1 Traps Extracted . | . . . . . . . . . . Installed 4 | . . . . . 3 . . . 1 Triggered 3 | . . . . . 2 . . . 1 Most Traps Carried 5 | . . . . 5 5 2 1 1 1 Machines | -11 -10 -10 -10 -9 -8 -7 -7 -7 -6 ---------- Run | Yrd Mat Min Exi Min Mat Fac Low Low Fac Machines Disabled 5 | . . . . . 1 3 . . 1 Max in Single Turn 2 | . . . . . 1 2 . . 1 Machines Repaired . | . . . . . . . . . . Machines Dismantled . | . . . . . . . . . . Machines Sabotaged . | . . . . . . . . . . Overloaded Fab Kills . | . . . . . . . . . . Hacking | -11 -10 -10 -10 -9 -8 -7 -7 -7 -6 --------- Run | Yrd Mat Min Exi Min Mat Fac Low Low Fac Machines Accessed 19 | . 3 . 4 . 4 5 1 . 2 Terminals 6 | . 3 . . . 1 2 . . . Fabricators 1 | . . . . . . 1 . . . Repair Stations 2 | . . . . . 1 . . . 1 Recycling Units 3 | . . . . . 1 2 . . . Scanalyzers 2 | . . . . . 1 . . . 1 Garrison Access . | . . . . . . . . . . Total Hacks 60 | . 7 . 16 . 19 11 1 . 6 Successful 38 | . 2 . 16 . 11 4 1 . 4 Failed 20 | . 5 . . . 7 7 . . 1 Catastrophic 4 | . 2 . . . . 2 . . . Database Lockouts 2 | . . . . . 1 . . . 1 Manual 16 | . 7 . 2 . 1 6 . . . Terminals 17 | . 7 . . . 5 5 . . . Fabricators 2 | . . . . . . 2 . . . Repair Stations 9 | . . . . . 6 . . . 3 Recycling Units 7 | . . . . . 3 4 . . . Scanalyzers 8 | . . . . . 5 . . . 3 Garrison Access . | . . . . . . . . . . Terminal Hacks 19 | . 1 . 16 . 1 . 1 . . Record 15 | . . . 15 . . . . . . Open Door 1 | . . . . . . . 1 . . Branch Access Points 1 | . 1 . . . . . . . . Locate Traps 1 | . . . . . 1 . . . . Proto ID Catalog 1 | . . . 1 . . . . . . Fabricator Hacks 2 | . . . . . . 2 . . . Load Schematic 1 | . . . . . . 1 . . . Build 1 | . . . . . . 1 . . . Repair Station Hacks 5 | . . . . . 3 . . . 2 Scan Component 3 | . . . . . 2 . . . 1 Repair 2 | . . . . . 1 . . . 1 Recycling Unit Hacks 3 | . . . . . 2 1 . . . Report Inventory 1 | . . . . . 1 . . . . Retrieve Components 2 | . . . . . 1 1 . . . Scanalyzer 6 | . . . . . 4 . . . 2 Insert Component 1 | . . . . . 1 . . . . Analyze 1 | . . . . . 1 . . . . Retrieve Study 4 | . . . . . 2 . . . 2 Garrison Access Hacks . | . . . . . . . . . . Unauthorized Hacks 3 | . 1 . . . 1 1 . . . Terminals 3 | . 1 . . . 1 1 . . . Botnet 3 | . 1 . . . 1 1 . . . Fabricators . | . . . . . . . . . . Repair Stations . | . . . . . . . . . . Recycling Units . | . . . . . . . . . . Scanalyzers . | . . . . . . . . . . Garrison Access . | . . . . . . . . . . Data Cores Recovered . | . . . . . . . . . . Used . | . . . . . . . . . . Hacking Detections 13 | . 3 . . . 4 5 . . 1 Full Trace Events 3 | . . . . . . 2 . . 1 Feedback Events . | . . . . . . . . . . Feedback Blocked . | . . . . . . . . . . Robot Schematics Acquired . | . . . . . . . . . . Robots Built . | . . . . . . . . . . Authchips . | . . . . . . . . . . Time . | . . . . . . . . . . Total Robot Build Rating . | . . . . . . . . . . Part Schematics Acquired 1 | . . . . . 1 . . . . Parts Built 2 | . . . . . . 2 . . . Authchips . | . . . . . . . . . . Time 31 | . . . . . . 31 . . . Total Part Build Rating 4 | . . . . . . 4 . . . Part Studies Acquired 4 | . . . . . 2 . . . 2 Parts Repaired 2 | . . . . . 1 . . . 1 Time 79 | . . . . . 44 . . . 35 Parts Recycled . | . . . . . . . . . . Recycled Matter . | . . . . . . . . . . Retrieved Matter . | . . . . . . . . . . Retrieved Components 3 | . . . . . 3 . . . . Parts Scanalyzed 1 | . . . . . 1 . . . . Part Schematics Acquired 1 | . . . . . 1 . . . . Parts Damaged . | . . . . . . . . . . Bothacking | -11 -10 -10 -10 -9 -8 -7 -7 -7 -6 ------------ Run | Yrd Mat Min Exi Min Mat Fac Low Low Fac Used RIF Installer . | . . . . . . . . . . Robots Hacked . | . . . . . . . . . . Non-combat . | . . . . . . . . . . Combat . | . . . . . . . . . . Robot Hacks Applied . | . . . . . . . . . . Relay Couplers Released . | . . . . . . . . . . Fabnet Peak Effective % . | . . . . . . . . . . Robots Rewired . | . . . . . . . . . . Allies Hacked . | . . . . . . . . . . Hacks Repelled . | . . . . . . . . . . Allies | -11 -10 -10 -10 -9 -8 -7 -7 -7 -6 -------- Run | Yrd Mat Min Exi Min Mat Fac Low Low Fac Total Allies . | . . . . . . . . . . Largest Group . | . . . . . . . . . . Highest-Rated Group . | . . . . . . . . . . Highest-Rated Ally . | . . . . . . . . . . Total Orders . | . . . . . . . . . . Ally Attacks . | . . . . . . . . . . Total Damage . | . . . . . . . . . . Kills . | . . . . . . . . . . Allies Corrupted . | . . . . . . . . . . Allies Melted . | . . . . . . . . . . Intel | -11 -10 -10 -10 -9 -8 -7 -7 -7 -6 ------- Run | Yrd Mat Min Exi Min Mat Fac Low Low Fac Active Infowar (turns) 2939 | 8 136 156 572 176 547 578 539 . 227 Terrain 2882 | 8 136 156 572 176 547 522 538 . 227 Traps 1265 | . . . . . . 550 539 . 176 Jamming 79 | . . . . . . 54 . . 25 ECM 2 | . . . . . . . . . 2 Robot Analysis Total . | . . . . . . . . . . Derelict Logs Recovered 1 | . . . . . . . 1 . . Drone Launches . | . . . . . . . . . . Drone Recoveries . | . . . . . . . . . . Exploration | -11 -10 -10 -10 -9 -8 -7 -7 -7 -6 ------------- Run | Yrd Mat Min Exi Min Mat Fac Low Low Fac Turns Passed 3562 | 76 136 156 572 176 634 940 627 18 227 Spaces Moved 3286 | 44 96 107 405 114 360 1063 792 41 264 Core 1 | 1 . . . . . . . . . Treads 32 | . . . . . 32 . . . . Legs . | . . . . . . . . . . Wheels 819 | 43 96 107 405 114 19 . . . 35 Hover 2434 | . . . . . 309 1063 792 41 229 Flight . | . . . . . . . . . . Fastest Speed 36 | 50 100 100 115 145 52 36 43 43 38 Average Speed 68 | 98 100 107 138 145 65 49 43 43 54 Slowest Speed 180 | 100 100 115 145 145 160 180 43 43 120 Overloaded Moves 59 | . . . . . . 37 . . 22 Propulsion Burnouts . | . . . . . . . . . . Robots Hopped . | . . . . . . . . . . Potential Cave-ins . | . . . . . . . . . . Cave-ins Triggered 1 | . . . . . 1 . . . . Exploration Rate (%) 30 | 4 24 28 72 26 35 19 83 7 10 Regions Visited 9 Branch Regions 5 Pre-discovered Areas 2 | . . . 1 1 . . . . . Known Exits Taken 4 | . 1 . . . . 1 1 1 . Unknown Exits Taken 5 | 1 . 1 1 1 1 . . . . Scrap Searched 3 | . . . . . . . 3 . . Spaces Dug 42 | . . 2 . . 9 2 20 . 9 Terrain Destroyed 102 | . . 2 . . 9 23 59 . 9 Melee 18 | . . 2 . . 9 2 . . 5 Projectile 4 | . . . . . . . . . 4 AOE 80 | . . . . . . 21 59 . . Terrain Rammed . | . . . . . . . . . . Walls Destroyed . | . . . . . . . . . . Machines Disabled . | . . . . . . . . . . Actions | -11 -10 -10 -10 -9 -8 -7 -7 -7 -6 --------- Run | Yrd Mat Min Exi Min Mat Fac Low Low Fac Total 4417 | 63 122 132 419 127 702 1447 1056 40 309 Wait 766 | 2 8 6 . 3 253 260 229 . 5 Move 3277 | 43 95 106 404 113 359 1062 791 40 264 Hop . | . . . . . . . . . . Pick Up 102 | 6 10 4 7 5 28 32 6 . 4 Fast Attach 12 | 6 . . . . 1 3 . . 2 Attach 17 | 1 . 1 . . 6 6 1 . 2 Detach 3 | . . . . . . 3 . . . Swap 44 | . 1 2 1 1 14 13 5 . 7 Drop 38 | . 1 3 5 5 6 13 4 . 1 Fire 84 | 5 7 6 . . 19 17 13 . 17 Melee 42 | . . 4 . . 13 12 7 . 6 Ram . | . . . . . . . . . . Kick . | . . . . . . . . . . Crush . | . . . . . . . . . . Escape Stasis 26 | . . . . . . 26 . . . Rewire 2 | . . . 2 . . . . . . Trap 4 | . . . . . 3 . . . 1 Miscellaneous . | . . . . . . . . . . Route ------- -11/Scrapyard -10/Materials -10/Mines -10/Exiles -9/Mines -8/Materials -7/Factory -7/Lower Caves -7/Lower Caves -6/Factory History --------- Turn | Location | Event 11 | -11/Scrapyard | Discovered new exit (range 16) 77 | -11/Scrapyard | Entered Materials 151 | -10/Materials | Identified exit to Mines 184 | -10/Materials | Met 8R-AWN 213 | -10/Materials | Entered Mines 214 | -10/Mines | Followed 8R-AWN into the Mines 232 | -10/Mines | Assembled infested the area 237 | -10/Mines | Assisted by a Guerilla fighting off Assembled 260 | -10/Mines | A weapon hastily lodged in a ceiling crevice suddenly fell to the ground 326 | -10/Mines | Received a Rocket Launcher from a helpful Derelict 347 | -10/Mines | Build established: Mutant 363 | -10/Mines | Discovered new exit (range 5) 369 | -10/Mines | Entered Exiles 402 | -10/Exiles | Welcomed by 8R-AWN 422 | -10/Exiles | Met EX-HEX 511 | -10/Exiles | Met EX-DEC 554 | -10/Exiles | Learned location of Zion (-7) 694 | -10/Exiles | Met EX-BIN 723 | -10/Exiles | Aligned with FarCom system 725 | -10/Exiles | Given EX-Vault access code 758 | -10/Exiles | Opened EX-Vault 770 | -10/Exiles | Found Lightpack 2.0 832 | -10/Exiles | Warned to stay clear of 0b10 Research branches 922 | -10/Exiles | Discovered new exit (range 14) 941 | -10/Exiles | Left Exiles lab with Lightpack 2.0 941 | -10/Exiles | Entered Mines 942 | -9/Mines | Learned location of Storage (-9) 948 | -9/Mines | Met a Derelict bent on vengeance 1014 | -9/Mines | Found a hidden stash of uninstalled traps 1109 | -9/Mines | Discovered new exit (range 8) 1117 | -9/Mines | Entered Materials 1117 | -8/Materials | Evolved 4 slots: Propulsion x1, Utility x3 1255 | -8/Materials | Crushed by falling debris 1641 | -8/Materials | Repaired Broken Imp. Hover Unit 1676 | -8/Materials | Central database locked down 1714 | -8/Materials | Build established: Hauler-Scout 1734 | -8/Materials | Discovered new exit (range 15) 1751 | -8/Materials | Entered Factory 1751 | -7/Factory | Evolved 2 slots: Propulsion x1, Utility x1 2404 | -7/Factory | Build established: Hauler-Mutant 2647 | -7/Factory | Fabricated Imp. Hover Unit (x2) 2661 | -7/Factory | Discovered new exit (range 8) 2691 | -7/Factory | Identified exit to Lower Caves 2691 | -7/Factory | Entered Lower Caves 2758 | -7/Lower Caves | Identified exit to Lower Caves 2914 | -7/Lower Caves | Encountered a Warlord checkpoint 3252 | -7/Lower Caves | Attracted the attention of an 0b10 outpost 3318 | -7/Lower Caves | Entered another Lower Caves area 3332 | -7/Lower Caves | Discovered new exit (range 9) 3335 | -7/Lower Caves | Identified exit to Factory 3336 | -7/Lower Caves | Entered Factory 3336 | -6/Factory | Evolved 2 slots: Propulsion x1, Utility x1 3381 | -6/Factory | Repaired Cld. Airjet 3489 | -6/Factory | Central database locked down 3563 | -6/Factory | Self-destructed Last Messages --------------- +1 support >>Study(Xenon Bombardment Thruster) Identified Xenon Bombardment Thruster... Downloading performance data... Effective improvements: +1 support 03489_ ALERT: Central database lockdown, local access denied. 03490_ Acquired Hvy. Ion Cannon. 03520_ K-01 Serf cleans the Nuclear Reactor. 03525_ O-24 Administrator: "IFF HANDSHAKE FAILED. SECURING TERMINAL." 03527_ O-24 Administrator sends out distress signal. 03529_ ALERT: Hostiles spotted, dispatching reinforcements to Terminal F010. Plasma Cannon swallowed by quantum anomaly within Lightpack 2.0. Quantum anomaly discharges Hcp. Matter Pod. 03535_ Extracted 200 matter. 03537_ Acquired Hcp. Matter Pod. 03540_ Critical hit (Burn: +50). 03543_ Imp. Hover Unit+ destroyed. 03563_ Critical hit (Burn: +37). Map ----- +----------------------------------------------------+ | ?????????????????????????????????????????????????? | | ?????????????????????????????????????????????????? | | ?????????????????????????????????????????????????? | | ?????????????????????????????????????????????????? | | ?????????????????????????????????????????????????? | | ?????????????????????????????????????????????????? | | ???????????????????????????????#?????????????????? | | ?????????????????????????????????????????????????? | | ?????????????????????Y??#????????????????????????? | | ?????????????????????????????????????????????????? | | ?????????????????????????????????????????????????? | | ?????????????????????????????????????????????????? | | ?????????????????????????????????????????????????? | | ?????????????????????????????????????????????????? | | ????????????????????#???????????????????????#????? | | ?????????????????????????????????????????????????? | | ??????????????????????????###???????????????#????? | | ????????????????????????###;##########???????????? | | ????????????????????????# #?#?????????? | | ??????????#???????#????## """ """ #???????????? | | ???????????????????????#; """ """ #???????????? | | ???????????????????????## """ """ #???????????? | | ???????????????????#????# g "#???????????? | | ???????????????????##???#g""" """ "#???????????? | | ???????????????????????## """ """ "#????????#??# | | ???????????????????????#;@""" """ T#???????????? | | ???????????????????????## "#???????????? | | ????????????????????????# g "#???#???????? | | ????????????????????????# "#???????????? | | ????????????????????????# o #???###?????? | | ??????????????????????#########+##########"#?????? | | ??????????????????????# ##?????? | | ??????????????????????# #??????? | | ??????????????????????# #??????? | | ???????????????"??????+ #??????? | | ??????????????????????# g #??????? | | ??????????????????????# g######### #??????? | | ??????????????????????# g#???????# #??????? | | ??????????????????????# #???????# ######## | | ?????????????????#????# #???????# # | | ????????????????#?????# #?#??##?# + | | ???? ????????########## #???????# # | | ?????????????# # ######### # | | ?????????????# "" # # # # """ "" | | ?????????????# ""S # # # # """ "" | | ?????????????# "" # # # # """ "" | | ?????????????# # # """" # # | | ?????????????# """ # # """" # # """ | | ?????????????# """ + + """" # # """ | | ?????????????# """ # # """" # # """ | +----------------------------------------------------+ Best States ------------- Heat Dissipation 48 Energy Generation 14 Energy Capacity 250 Matter Stores 300 Matter Capacity 300 Sight Range 16 Terrain Scan Range 16 Terrain Scan Density 10 Jamming Range 12 Armor Coverage 300 Resistance: TH 10 Weapon Cycling 15 Evasion (%) 57 Recoil Reduction 2 Item Schematics ----------------- Imp. Hover Unit | -8/Materials | Scanalyzed Robot Schematics ------------------ None Fabricated ------------ Imp. Hover Unit | x2 | -7/Factory Repaired ---------- Imp. Hover Unit | 40% | -8/Materials | Broken Cld. Airjet | 36% | -6/Factory Studied --------- Imp. Hover Unit | -8/Materials | Hacked VTOL Module | -8/Materials | Hacked Cmb. Airjet | -6/Factory | Hacked Xenon Bombardment Thruster | -6/Factory | Hacked Alien Tech Used ----------------- None Achievements -------------- Follow The Leader Challenges ------------ None Game ------ Seed SupersonicMachineCompanion Manual? 0 Play Time 01:33:40 Cumulative 251.5 hours Start 2025.12.24 @ 23:51:50 End 2025.12.25 @ 01:27:57 Sessions 1 Manual Loads 0 Difficulty Rogue Special Mode None Game No. 83 Rogue 83 Adventurer 0 Explorer 0 Win Type - Total 2 Types 2/0/0/0/0/0/0/0/0/0 Lore% 53 Gallery% 60 Achievement% 40 Wizard Run 0 Options --------- Layout 0 ASCII 0 Keyboard 0 Movement Numpad Keybinds 1 Fullscreen 2 Font 18/X11 Map View 76x50 Zoom Use 0% Tactical HUD 1 Map Filters NONE Filters NONE Steam 1 RUN: a51bbbe2-4f45-41df-8cf5-70ad0061a506